[Event "Titled Tuesday Blitz June 27 Early 2023"]
[White "Vifleemskaia, Svetlana"]
[Black "Sargsyan, Anna M."]
[WhiteFideId "4129490"]
[BlackFideId "13308130"]
[WhiteElo "2335"]
[BlackElo "2559"]
[Result "0-1"]
[Round "5"]
[TimeControl "180+2"]
[Date "2023.06.27"]
[WhiteClock "0:00:16"]
[BlackClock "0:02:20"]
[Board "133"]

1. d4 {[%clk 0:02:29]}  d5 {[%clk 0:02:58]} 2. c4 {[%clk 0:02:29]}  c6 {[%clk 0:02:56]} 3. cxd5 {[%clk 0:02:29]}  cxd5 {[%clk 0:02:57]} 4. Bf4 {[%clk 0:02:28]}  Nc6 {[%clk 0:02:57]} 5. Nc3 {[%clk 0:02:27]}  e5 {[%clk 0:02:57]} 6. dxe5 {[%clk 0:02:26]}  d4 {[%clk 0:02:57]} 7. Ne4 {[%clk 0:02:20]}  Qa5+ {[%clk 0:02:57]} 8. Bd2 {[%clk 0:02:17]}  Qxe5 {[%clk 0:02:56]} 9. Ng3 {[%clk 0:02:15]}  Bg4 {[%clk 0:02:54]} 10. Qa4 {[%clk 0:02:02]}  Nf6 {[%clk 0:02:51]} 11. O-O-O {[%clk 0:01:54]}  Be7 {[%clk 0:02:49]} 12. Kb1 {[%clk 0:01:49]}  O-O {[%clk 0:02:48]} 13. Nf3 {[%clk 0:01:49]}  Qd5 {[%clk 0:02:37]} 14. h3 {[%clk 0:01:41]}  Be6 {[%clk 0:02:36]} 15. e4 {[%clk 0:01:11]}  Nxe4 {[%clk 0:02:33]} 16. Nxe4 {[%clk 0:01:09]}  Qxe4+ {[%clk 0:02:34]} 17. Qc2 {[%clk 0:01:07]}  Bxa2+ {[%clk 0:02:31]} 18. Kc1 {[%clk 0:01:05]}  Qd5 {[%clk 0:02:31]} 19. Bd3 {[%clk 0:00:41]}  Rac8 {[%clk 0:02:29]} 20. Bf5 {[%clk 0:00:40]}  Nb4 {[%clk 0:02:21]} 21. Bxc8 {[%clk 0:00:16]}  Nxc2 {[%clk 0:02:20]} 0-1


[Site "https://www.chess.com"]

[Event "Titled Tuesday Blitz June 27 Early 2023"]
[White "Tologon tegin, Semetei"]
[Black "Rosh Jain"]
[WhiteFideId "13800574"]
[BlackFideId "25789465"]
[WhiteElo "2554"]
[BlackElo "2286"]
[Result "0-1"]
[Round "5"]
[TimeControl "180+2"]
[Date "2023.06.27"]
[WhiteClock "0:00:07"]
[BlackClock "0:00:11"]
[Board "135"]

1. g3 {[%clk 0:02:57]}  d5 {[%clk 0:02:59]} 2. Bg2 {[%clk 0:02:58]}  Nf6 {[%clk 0:03:00]} 3. d3 {[%clk 0:02:57]}  e5 {[%clk 0:02:59]} 4. Nf3 {[%clk 0:02:57]}  Nc6 {[%clk 0:02:59]} 5. a3 {[%clk 0:02:56]}  a5 {[%clk 0:02:58]} 6. c4 {[%clk 0:02:54]}  dxc4 {[%clk 0:02:57]} 7. Qa4 {[%clk 0:02:54]}  Bd7 {[%clk 0:02:54]} 8. Qxc4 {[%clk 0:02:53]}  Bd6 {[%clk 0:02:54]} 9. O-O {[%clk 0:02:53]}  O-O {[%clk 0:02:53]} 10. Nc3 {[%clk 0:02:48]}  h6 {[%clk 0:02:51]} 11. Ne4 {[%clk 0:02:36]}  Be6 {[%clk 0:02:47]} 12. Nxf6+ {[%clk 0:02:36]}  Qxf6 {[%clk 0:02:48]} 13. Qb5 {[%clk 0:02:35]}  Ra7 {[%clk 0:02:44]} 14. Bd2 {[%clk 0:02:33]}  Rd8 {[%clk 0:02:34]} 15. Bc3 {[%clk 0:02:27]}  Qf5 {[%clk 0:02:18]} 16. Rac1 {[%clk 0:02:13]}  e4 {[%clk 0:02:10]} 17. Qxf5 {[%clk 0:02:12]}  Bxf5 {[%clk 0:02:11]} 18. Nh4 {[%clk 0:02:12]}  Bg4 {[%clk 0:02:11]} 19. dxe4 {[%clk 0:01:59]}  Bxe2 {[%clk 0:02:11]} 20. Rfe1 {[%clk 0:01:59]}  Bg4 {[%clk 0:02:10]} 21. h3 {[%clk 0:01:55]}  Be6 {[%clk 0:02:08]} 22. Nf5 {[%clk 0:01:48]}  f6 {[%clk 0:01:57]} 23. Nxd6 {[%clk 0:01:39]}  Rxd6 {[%clk 0:01:58]} 24. e5 {[%clk 0:01:11]}  fxe5 {[%clk 0:01:57]} 25. Bxe5 {[%clk 0:01:12]}  Nxe5 {[%clk 0:01:58]} 26. Rxe5 {[%clk 0:01:12]}  c6 {[%clk 0:01:57]} 27. Rce1 {[%clk 0:01:10]}  Kf7 {[%clk 0:01:57]} 28. f4 {[%clk 0:01:00]}  g6 {[%clk 0:01:54]} 29. g4 {[%clk 0:00:58]}  b5 {[%clk 0:01:52]} 30. Be4 {[%clk 0:00:53]}  Bb3 {[%clk 0:01:39]} 31. f5 {[%clk 0:00:48]}  gxf5 {[%clk 0:01:37]} 32. Rxf5+ {[%clk 0:00:48]}  Kg7 {[%clk 0:01:35]} 33. Rc1 {[%clk 0:00:48]}  Bc4 {[%clk 0:01:31]} 34. Rc5 {[%clk 0:00:45]}  Re7 {[%clk 0:01:26]} 35. Rxc6 {[%clk 0:00:42]}  Rd2 {[%clk 0:01:10]} 36. b3 {[%clk 0:00:25]}  Rxe4 {[%clk 0:00:49]} 37. bxc4 {[%clk 0:00:25]}  Ree2 {[%clk 0:00:48]} 38. cxb5 {[%clk 0:00:25]}  Rg2+ {[%clk 0:00:48]} 39. Kf1 {[%clk 0:00:25]}  Rgf2+ {[%clk 0:00:46]} 40. Kg1 {[%clk 0:00:25]}  Rg2+ {[%clk 0:00:46]} 41. Kf1 {[%clk 0:00:26]}  Rdf2+ {[%clk 0:00:45]} 42. Ke1 {[%clk 0:00:25]}  Rb2 {[%clk 0:00:21]} 43. Rc7+ {[%clk 0:00:21]}  Kf6 {[%clk 0:00:20]} 44. R1c6+ {[%clk 0:00:19]}  Kg5 {[%clk 0:00:20]} 45. Rg7+ {[%clk 0:00:17]}  Kf4 {[%clk 0:00:20]} 46. Rf7+ {[%clk 0:00:17]}  Kg3 {[%clk 0:00:19]} 47. Rc3+ {[%clk 0:00:17]}  Kh2 {[%clk 0:00:19]} 48. Rc1 {[%clk 0:00:16]}  Rg1+ {[%clk 0:00:19]} 49. Rf1 {[%clk 0:00:15]}  Rgg2 {[%clk 0:00:18]} 50. Rf3 {[%clk 0:00:15]}  Rbe2+ {[%clk 0:00:17]} 51. Kf1 {[%clk 0:00:15]}  Rd2 {[%clk 0:00:12]} 52. Ke1 {[%clk 0:00:15]}  Rde2+ {[%clk 0:00:12]} 53. Kf1 {[%clk 0:00:15]}  Re4 {[%clk 0:00:12]} 54. b6 {[%clk 0:00:13]}  Rg1+ {[%clk 0:00:12]} 55. Kf2 {[%clk 0:00:14]}  Rxc1 {[%clk 0:00:12]} 56. Rb3 {[%clk 0:00:13]}  Re8 {[%clk 0:00:10]} 57. b7 {[%clk 0:00:12]}  Rb8 {[%clk 0:00:09]} 58. Kf3 {[%clk 0:00:12]}  Rc7 {[%clk 0:00:08]} 59. Rb2+ {[%clk 0:00:12]}  Kxh3 {[%clk 0:00:08]} 60. Rb5 {[%clk 0:00:12]}  Rf7+ {[%clk 0:00:05]} 61. Ke3 {[%clk 0:00:12]}  Rfxb7 {[%clk 0:00:06]} 62. Rxa5 {[%clk 0:00:12]}  Kxg4 {[%clk 0:00:06]} 63. Ra6 {[%clk 0:00:11]}  h5 {[%clk 0:00:06]} 64. Rg6+ {[%clk 0:00:11]}  Kh3 {[%clk 0:00:06]} 65. a4 {[%clk 0:00:10]}  h4 {[%clk 0:00:06]} 66. a5 {[%clk 0:00:10]}  Re7+ {[%clk 0:00:06]} 67. Kd4 {[%clk 0:00:09]}  Kh2 {[%clk 0:00:06]} 68. a6 {[%clk 0:00:08]}  h3 {[%clk 0:00:06]} 69. Kc5 {[%clk 0:00:08]}  Rc7+ {[%clk 0:00:05]} 70. Kd5 {[%clk 0:00:07]}  Ra7 {[%clk 0:00:06]} 71. Rc6 {[%clk 0:00:06]}  Rba8 {[%clk 0:00:05]} 72. Rc2+ {[%clk 0:00:06]}  Kg3 {[%clk 0:00:05]} 73. Rc3+ {[%clk 0:00:06]}  Kh4 {[%clk 0:00:04]} 74. Rc4+ {[%clk 0:00:07]}  Kg5 {[%clk 0:00:04]} 75. Rc3 {[%clk 0:00:05]}  Rxa6 {[%clk 0:00:04]} 76. Rxh3 {[%clk 0:00:05]}  Ra5+ {[%clk 0:00:04]} 77. Kc6 {[%clk 0:00:05]}  R8a6+ {[%clk 0:00:04]} 78. Kb7 {[%clk 0:00:05]}  Rg6 {[%clk 0:00:04]} 79. Rg3+ {[%clk 0:00:05]}  Kf6 {[%clk 0:00:04]} 80. Rf3+ {[%clk 0:00:05]}  Kg7 {[%clk 0:00:04]} 81. Kc7 {[%clk 0:00:02]}  Re5 {[%clk 0:00:04]} 82. Kd7 {[%clk 0:00:02]}  Ra5 {[%clk 0:00:04]} 83. Kc7 {[%clk 0:00:02]}  Ra7+ {[%clk 0:00:04]} 84. Kb8 {[%clk 0:00:03]}  Rf7 {[%clk 0:00:05]} 85. Rc3 {[%clk 0:00:03]}  Kg8 {[%clk 0:00:04]} 86. Rc8+ {[%clk 0:00:03]}  Rf8 {[%clk 0:00:05]} 87. Rxf8+ {[%clk 0:00:02]}  Kxf8 {[%clk 0:00:06]} 88. Kc7 {[%clk 0:00:03]}  Rf6 {[%clk 0:00:05]} 89. Kd7 {[%clk 0:00:04]}  Kf7 {[%clk 0:00:06]} 90. Kd8 {[%clk 0:00:04]}  Re6 {[%clk 0:00:07]} 91. Kc8 {[%clk 0:00:05]}  Ke7 {[%clk 0:00:08]} 92. Kb8 {[%clk 0:00:05]}  Rc6 {[%clk 0:00:08]} 93. Ka8 {[%clk 0:00:06]}  Kd7 {[%clk 0:00:09]} 94. Ka7 {[%clk 0:00:07]}  Kc7 {[%clk 0:00:10]} 95. Ka8 {[%clk 0:00:07]}  Ra6# {[%clk 0:00:11]} 0-1


[Site "https://www.chess.com"]

[Event "Titled Tuesday Blitz June 27 Early 2023"]
[White "Coelho, Ramyres Santana"]
[Black "Belov, Alexei"]
[WhiteFideId "2120690"]
[BlackFideId "4128206"]
[WhiteElo "2246"]
[BlackElo "2548"]
[Result "1-0"]
[Round "5"]
[TimeControl "180+2"]
[Date "2023.06.27"]
[WhiteClock "0:00:17"]
[BlackClock "0:00:29"]
[Board "139"]

1. e4 {[%clk 0:03:00]}  e6 {[%clk 0:02:59]} 2. d4 {[%clk 0:03:00]}  d5 {[%clk 0:03:00]} 3. Nc3 {[%clk 0:03:00]}  Nf6 {[%clk 0:03:00]} 4. e5 {[%clk 0:03:00]}  Ne4 {[%clk 0:03:00]} 5. f4 {[%clk 0:03:01]}  Qh4+ {[%clk 0:03:00]} 6. g3 {[%clk 0:02:51]}  Nxg3 {[%clk 0:03:00]} 7. hxg3 {[%clk 0:02:52]}  Qxh1 {[%clk 0:03:00]} 8. Be3 {[%clk 0:02:50]}  h5 {[%clk 0:02:43]} 9. Kf2 {[%clk 0:02:11]}  h4 {[%clk 0:02:33]} 10. g4 {[%clk 0:02:11]}  Qh2+ {[%clk 0:02:26]} 11. Ke1 {[%clk 0:02:08]}  Qg3+ {[%clk 0:02:12]} 12. Bf2 {[%clk 0:02:08]}  Qxf4 {[%clk 0:02:12]} 13. Nh3 {[%clk 0:02:08]}  Qh2 {[%clk 0:01:59]} 14. Qf3 {[%clk 0:02:00]}  Be7 {[%clk 0:01:48]} 15. Rd1 {[%clk 0:01:51]}  f6 {[%clk 0:01:38]} 16. exf6 {[%clk 0:01:40]}  gxf6 {[%clk 0:01:32]} 17. Bd3 {[%clk 0:01:38]}  Nc6 {[%clk 0:01:21]} 18. Bg6+ {[%clk 0:01:32]}  Kd8 {[%clk 0:01:20]} 19. Rd2 {[%clk 0:01:20]}  Qd6 {[%clk 0:01:07]} 20. Re2 {[%clk 0:01:18]}  a6 {[%clk 0:01:06]} 21. Bh5 {[%clk 0:00:56]}  Bd7 {[%clk 0:01:01]} 22. Bxh4 {[%clk 0:00:55]}  Nxd4 {[%clk 0:01:00]} 23. Qe3 {[%clk 0:00:48]}  Nxe2 {[%clk 0:00:59]} 24. Nxe2 {[%clk 0:00:49]}  Qe5 {[%clk 0:00:56]} 25. Qb3 {[%clk 0:00:43]}  Bb5 {[%clk 0:00:55]} 26. Nf4 {[%clk 0:00:34]}  f5 {[%clk 0:00:47]} 27. Bxe7+ {[%clk 0:00:31]}  Kxe7 {[%clk 0:00:47]} 28. Ng6+ {[%clk 0:00:31]}  Kf6 {[%clk 0:00:42]} 29. Nxe5 {[%clk 0:00:32]}  Kxe5 {[%clk 0:00:43]} 30. Qc3+ {[%clk 0:00:30]}  Kd6 {[%clk 0:00:42]} 31. Qg3+ {[%clk 0:00:29]}  e5 {[%clk 0:00:42]} 32. gxf5 {[%clk 0:00:26]}  Rag8 {[%clk 0:00:40]} 33. Bg6 {[%clk 0:00:26]}  Be8 {[%clk 0:00:38]} 34. Qa3+ {[%clk 0:00:17]}  c5 {[%clk 0:00:33]} 35. Qb3 {[%clk 0:00:17]}  b5 {[%clk 0:00:32]} 36. Qa3 {[%clk 0:00:16]}  e4 {[%clk 0:00:29]} 37. Qxa6+ {[%clk 0:00:16]}  Ke5 {[%clk 0:00:29]} 38. Qe6# {[%clk 0:00:17]} 1-0


[Site "https://www.chess.com"]

[Event "Titled Tuesday Blitz June 27 Early 2023"]
[White "Ismagilov, Damir"]
[Black "hsd2016"]
[WhiteFideId "34199982"]
[WhiteElo "2541"]
[BlackElo "2200"]
[Result "0-1"]
[Round "5"]
[TimeControl "180+2"]
[Date "2023.06.27"]
[WhiteClock "0:00:10"]
[BlackClock "0:00:15"]
[Board "141"]

1. d4 {[%clk 0:03:00]}  d6 {[%clk 0:03:00]} 2. Nc3 {[%clk 0:02:58]}  g6 {[%clk 0:02:58]} 3. Bf4 {[%clk 0:02:58]}  Bg7 {[%clk 0:02:58]} 4. Nf3 {[%clk 0:02:57]}  d5 {[%clk 0:02:57]} 5. Qd2 {[%clk 0:02:56]}  Nf6 {[%clk 0:02:57]} 6. O-O-O {[%clk 0:02:55]}  a6 {[%clk 0:02:57]} 7. Bh6 {[%clk 0:02:51]}  Bxh6 {[%clk 0:02:48]} 8. Qxh6 {[%clk 0:02:52]}  b5 {[%clk 0:02:47]} 9. Ne5 {[%clk 0:02:47]}  Bf5 {[%clk 0:02:38]} 10. f3 {[%clk 0:02:43]}  b4 {[%clk 0:02:34]} 11. Na4 {[%clk 0:02:38]}  Nbd7 {[%clk 0:02:34]} 12. g4 {[%clk 0:02:33]}  Be6 {[%clk 0:02:30]} 13. e3 {[%clk 0:01:52]}  Qb8 {[%clk 0:01:52]} 14. h4 {[%clk 0:01:39]}  Nxe5 {[%clk 0:01:42]} 15. dxe5 {[%clk 0:01:40]}  Nd7 {[%clk 0:01:43]} 16. Qf4 {[%clk 0:01:31]}  c5 {[%clk 0:01:40]} 17. h5 {[%clk 0:01:24]}  Rf8 {[%clk 0:01:17]} 18. b3 {[%clk 0:01:15]}  Qxe5 {[%clk 0:01:02]} 19. Qxe5 {[%clk 0:01:01]}  Nxe5 {[%clk 0:01:03]} 20. Nxc5 {[%clk 0:00:58]}  Nxf3 {[%clk 0:01:01]} 21. Nxa6 {[%clk 0:00:58]}  Ne5 {[%clk 0:00:48]} 22. Nc7+ {[%clk 0:00:53]}  Kd7 {[%clk 0:00:46]} 23. Nxa8 {[%clk 0:00:53]}  Rxa8 {[%clk 0:00:47]} 24. hxg6 {[%clk 0:00:53]}  hxg6 {[%clk 0:00:44]} 25. e4 {[%clk 0:00:49]}  Rxa2 {[%clk 0:00:38]} 26. g5 {[%clk 0:00:39]}  Ra1+ {[%clk 0:00:37]} 27. Kd2 {[%clk 0:00:38]}  Rxd1+ {[%clk 0:00:38]} 28. Kxd1 {[%clk 0:00:39]}  dxe4 {[%clk 0:00:36]} 29. Bg2 {[%clk 0:00:37]}  Bf5 {[%clk 0:00:35]} 30. Re1 {[%clk 0:00:35]}  Bg4+ {[%clk 0:00:31]} 31. Kd2 {[%clk 0:00:33]}  Nf3+ {[%clk 0:00:31]} 32. Bxf3 {[%clk 0:00:33]}  Bxf3 {[%clk 0:00:24]} 33. Ra1 {[%clk 0:00:32]}  Ke6 {[%clk 0:00:23]} 34. Ra6+ {[%clk 0:00:25]}  Kf5 {[%clk 0:00:22]} 35. Ra5+ {[%clk 0:00:19]}  Kf4 {[%clk 0:00:21]} 36. Rb5 {[%clk 0:00:20]}  e5 {[%clk 0:00:15]} 37. Rb7 {[%clk 0:00:17]}  e3+ {[%clk 0:00:15]} 38. Ke1 {[%clk 0:00:17]}  Bxb7 {[%clk 0:00:16]} 39. c4 {[%clk 0:00:16]}  bxc3 {[%clk 0:00:16]} 40. Kd1 {[%clk 0:00:17]}  Ke4 {[%clk 0:00:14]} 41. Kc2 {[%clk 0:00:18]}  Kd4 {[%clk 0:00:14]} 42. b4 {[%clk 0:00:18]}  e2 {[%clk 0:00:15]} 43. b5 {[%clk 0:00:19]}  e1=Q {[%clk 0:00:15]} 44. b6 {[%clk 0:00:20]}  Qd2+ {[%clk 0:00:15]} 45. Kb3 {[%clk 0:00:21]}  Qb2+ {[%clk 0:00:16]} 46. Ka4 {[%clk 0:00:10]}  Bc6+ {[%clk 0:00:15]} 0-1


[Site "https://www.chess.com"]

[Event "Titled Tuesday Blitz June 27 Early 2023"]
[White "Zheenbekov, Nurgazy"]
[Black "Remizov, Yaroslav"]
[WhiteFideId "13800485"]
[BlackFideId "34134015"]
[WhiteElo "2423"]
[BlackElo "2791"]
[Result "1-0"]
[Round "5"]
[TimeControl "180+2"]
[Date "2023.06.27"]
[WhiteClock "0:00:34"]
[BlackClock "0:00:05"]
[Board "142"]

1. e4 {[%clk 0:02:59]}  c5 {[%clk 0:02:59]} 2. Nf3 {[%clk 0:02:59]}  d6 {[%clk 0:02:58]} 3. Bb5+ {[%clk 0:02:58]}  Bd7 {[%clk 0:02:58]} 4. Bxd7+ {[%clk 0:02:58]}  Qxd7 {[%clk 0:02:58]} 5. O-O {[%clk 0:02:59]}  Nc6 {[%clk 0:02:54]} 6. Qe2 {[%clk 0:02:58]}  g6 {[%clk 0:02:52]} 7. c3 {[%clk 0:02:56]}  Bg7 {[%clk 0:02:52]} 8. Rd1 {[%clk 0:02:56]}  e5 {[%clk 0:02:43]} 9. d3 {[%clk 0:02:46]}  Nge7 {[%clk 0:02:42]} 10. Nbd2 {[%clk 0:02:40]}  O-O {[%clk 0:02:42]} 11. a4 {[%clk 0:02:38]}  a6 {[%clk 0:02:35]} 12. Nc4 {[%clk 0:02:37]}  Qc7 {[%clk 0:02:29]} 13. a5 {[%clk 0:02:36]}  d5 {[%clk 0:02:17]} 14. exd5 {[%clk 0:02:33]}  Nxd5 {[%clk 0:02:17]} 15. h4 {[%clk 0:02:33]}  h5 {[%clk 0:02:16]} 16. Ng5 {[%clk 0:02:29]}  b5 {[%clk 0:02:08]} 17. axb6 {[%clk 0:02:25]}  Nxb6 {[%clk 0:02:09]} 18. Be3 {[%clk 0:02:16]}  Nxc4 {[%clk 0:01:57]} 19. dxc4 {[%clk 0:02:16]}  Ne7 {[%clk 0:01:57]} 20. Qf3 {[%clk 0:02:12]}  Nf5 {[%clk 0:01:52]} 21. Rd5 {[%clk 0:02:08]}  Nxh4 {[%clk 0:01:46]} 22. Qe4 {[%clk 0:02:02]}  Nf5 {[%clk 0:01:45]} 23. Bxc5 {[%clk 0:01:52]}  Rfd8 {[%clk 0:01:39]} 24. b4 {[%clk 0:01:52]}  Ne7 {[%clk 0:01:27]} 25. Rxd8+ {[%clk 0:01:50]}  Qxd8 {[%clk 0:01:10]} 26. Bxe7 {[%clk 0:01:49]}  Qc8 {[%clk 0:01:07]} 27. Qd5 {[%clk 0:01:47]}  Qe8 {[%clk 0:01:05]} 28. Bd6 {[%clk 0:01:41]}  Qd8 {[%clk 0:00:57]} 29. c5 {[%clk 0:01:39]}  a5 {[%clk 0:00:56]} 30. Nxf7 {[%clk 0:01:36]}  Qc8 {[%clk 0:00:27]} 31. Bxe5 {[%clk 0:01:22]}  Kh7 {[%clk 0:00:21]} 32. Ng5+ {[%clk 0:01:14]}  Kh6 {[%clk 0:00:11]} 33. Bxg7+ {[%clk 0:01:12]}  Kxg7 {[%clk 0:00:12]} 34. f4 {[%clk 0:00:49]}  Ra7 {[%clk 0:00:08]} 35. Rxa5 {[%clk 0:00:44]}  Qb8 {[%clk 0:00:06]} 36. Rxa7+ {[%clk 0:00:37]}  Qxa7 {[%clk 0:00:06]} 37. Qe5+ {[%clk 0:00:35]}  Kg8 {[%clk 0:00:06]} 38. Qe6+ {[%clk 0:00:35]}  Kg7 {[%clk 0:00:06]} 39. Qf7+ {[%clk 0:00:34]}  Qxf7 {[%clk 0:00:05]} 40. Nxf7 {[%clk 0:00:34]}  Kxf7 {[%clk 0:00:05]} 41. b5 {[%clk 0:00:34]} 1-0


[Site "https://www.chess.com"]

[Event "Titled Tuesday Blitz June 27 Early 2023"]
[White "Florescu, Codrut-Constantin"]
[Black "LeoLV10"]
[WhiteFideId "1202200"]
[WhiteElo "2634"]
[BlackElo "2418"]
[Result "1-0"]
[Round "5"]
[TimeControl "180+2"]
[Date "2023.06.27"]
[WhiteClock "0:00:16"]
[BlackClock "0:00:12"]
[Board "143"]

1. e4 {[%clk 0:03:00]}  c6 {[%clk 0:02:55]} 2. d4 {[%clk 0:03:00]}  d5 {[%clk 0:02:56]} 3. e5 {[%clk 0:03:00]}  c5 {[%clk 0:02:56]} 4. Nf3 {[%clk 0:03:00]}  e6 {[%clk 0:02:43]} 5. c4 {[%clk 0:02:54]}  cxd4 {[%clk 0:02:41]} 6. cxd5 {[%clk 0:02:46]}  Qxd5 {[%clk 0:02:40]} 7. Qxd4 {[%clk 0:02:46]}  Nc6 {[%clk 0:02:38]} 8. Qxd5 {[%clk 0:02:33]}  exd5 {[%clk 0:02:39]} 9. Nc3 {[%clk 0:02:33]}  Be6 {[%clk 0:02:39]} 10. Be3 {[%clk 0:02:20]}  O-O-O {[%clk 0:02:33]} 11. O-O-O {[%clk 0:02:18]}  Nge7 {[%clk 0:02:17]} 12. Nb5 {[%clk 0:02:17]}  Nf5 {[%clk 0:02:17]} 13. Nxa7+ {[%clk 0:02:15]}  Kb8 {[%clk 0:01:58]} 14. Nxc6+ {[%clk 0:02:13]}  bxc6 {[%clk 0:01:59]} 15. Bg5 {[%clk 0:02:13]}  Rd7 {[%clk 0:01:57]} 16. g4 {[%clk 0:02:11]}  Ne7 {[%clk 0:01:54]} 17. Rg1 {[%clk 0:02:07]}  Ng6 {[%clk 0:01:50]} 18. Nd4 {[%clk 0:01:58]}  c5 {[%clk 0:01:46]} 19. Nxe6 {[%clk 0:01:36]}  fxe6 {[%clk 0:01:47]} 20. f4 {[%clk 0:01:36]}  Ra7 {[%clk 0:01:45]} 21. a3 {[%clk 0:01:35]}  h6 {[%clk 0:01:43]} 22. f5 {[%clk 0:01:25]}  hxg5 {[%clk 0:01:38]} 23. fxg6 {[%clk 0:01:25]}  Rxh2 {[%clk 0:01:38]} 24. Bd3 {[%clk 0:01:22]}  c4 {[%clk 0:01:36]} 25. Rgf1 {[%clk 0:01:11]}  Bc5 {[%clk 0:01:36]} 26. Bc2 {[%clk 0:01:11]}  Be3+ {[%clk 0:01:36]} 27. Kb1 {[%clk 0:01:09]}  Bf4 {[%clk 0:01:36]} 28. Rh1 {[%clk 0:01:07]}  Rg2 {[%clk 0:01:28]} 29. Rh8+ {[%clk 0:00:42]}  Kc7 {[%clk 0:01:26]} 30. Rf8 {[%clk 0:00:37]}  Rb7 {[%clk 0:00:58]} 31. Rf7+ {[%clk 0:00:35]}  Kc6 {[%clk 0:00:56]} 32. Rxb7 {[%clk 0:00:36]}  Kxb7 {[%clk 0:00:57]} 33. a4 {[%clk 0:00:32]}  Re2 {[%clk 0:00:49]} 34. Rh1 {[%clk 0:00:29]}  Bxe5 {[%clk 0:00:49]} 35. Rh8 {[%clk 0:00:26]}  Bf6 {[%clk 0:00:49]} 36. a5 {[%clk 0:00:22]}  d4 {[%clk 0:00:47]} 37. Rf8 {[%clk 0:00:19]}  Re1+ {[%clk 0:00:38]} 38. Ka2 {[%clk 0:00:19]}  d3 {[%clk 0:00:39]} 39. Ba4 {[%clk 0:00:17]}  Be5 {[%clk 0:00:36]} 40. Bb5 {[%clk 0:00:11]}  Re2 {[%clk 0:00:34]} 41. Rf7+ {[%clk 0:00:11]}  Kc8 {[%clk 0:00:28]} 42. Bxc4 {[%clk 0:00:10]}  Rxb2+ {[%clk 0:00:28]} 43. Ka3 {[%clk 0:00:10]}  d2 {[%clk 0:00:26]} 44. Bxe6+ {[%clk 0:00:06]}  Kb8 {[%clk 0:00:24]} 45. Rd7 {[%clk 0:00:07]}  Rc2 {[%clk 0:00:19]} 46. a6 {[%clk 0:00:07]}  Rc3+ {[%clk 0:00:17]} 47. Ka4 {[%clk 0:00:07]}  Rc6 {[%clk 0:00:17]} 48. a7+ {[%clk 0:00:07]}  Ka8 {[%clk 0:00:14]} 49. Bd5 {[%clk 0:00:08]}  d1=Q+ {[%clk 0:00:13]} 50. Kb5 {[%clk 0:00:09]}  Qd3+ {[%clk 0:00:12]} 51. Kxc6 {[%clk 0:00:08]}  Qa6+ {[%clk 0:00:10]} 52. Kc5+ {[%clk 0:00:08]}  Qb7 {[%clk 0:00:08]} 53. Rxb7 {[%clk 0:00:09]}  Bd4+ {[%clk 0:00:08]} 54. Kc6 {[%clk 0:00:09]}  Bxa7 {[%clk 0:00:07]} 55. Rc7 {[%clk 0:00:09]}  Bb8 {[%clk 0:00:08]} 56. Be6 {[%clk 0:00:10]}  Bxc7 {[%clk 0:00:08]} 57. Kxc7 {[%clk 0:00:10]}  Ka7 {[%clk 0:00:08]} 58. Kd7 {[%clk 0:00:11]}  Ka8 {[%clk 0:00:09]} 59. Ke7 {[%clk 0:00:12]}  Kb8 {[%clk 0:00:10]} 60. Kf7 {[%clk 0:00:13]}  Kc7 {[%clk 0:00:11]} 61. Kxg7 {[%clk 0:00:14]}  Kd6 {[%clk 0:00:12]} 62. Kf6 {[%clk 0:00:15]}  Kc7 {[%clk 0:00:11]} 63. Kxg5 {[%clk 0:00:16]}  Kd6 {[%clk 0:00:11]} 64. Kf6 {[%clk 0:00:16]}  Kc7 {[%clk 0:00:11]} 65. g7 {[%clk 0:00:17]}  Kd8 {[%clk 0:00:12]} 66. Kf7 {[%clk 0:00:16]} 1-0


[Site "https://www.chess.com"]

[Event "Titled Tuesday Blitz June 27 Early 2023"]
[White "Skliarov, Viktor"]
[Black "Mateus, Alejandro"]
[WhiteFideId "14106736"]
[BlackFideId "4402529"]
[WhiteElo "2568"]
[BlackElo "2417"]
[Result "1/2-1/2"]
[Round "5"]
[TimeControl "180+2"]
[Date "2023.06.27"]
[WhiteClock "0:01:14"]
[BlackClock "0:01:18"]
[Board "145"]

1. e4 {[%clk 0:03:00]}  c5 {[%clk 0:02:39]} 2. Nf3 {[%clk 0:03:00]}  d6 {[%clk 0:02:31]} 3. d4 {[%clk 0:03:00]}  cxd4 {[%clk 0:02:32]} 4. Qxd4 {[%clk 0:03:01]}  Nc6 {[%clk 0:02:30]} 5. Bb5 {[%clk 0:03:01]}  Bd7 {[%clk 0:02:30]} 6. Bxc6 {[%clk 0:03:02]}  Bxc6 {[%clk 0:02:30]} 7. Nc3 {[%clk 0:03:02]}  Nf6 {[%clk 0:02:30]} 8. Bg5 {[%clk 0:03:03]}  e6 {[%clk 0:02:30]} 9. O-O-O {[%clk 0:03:03]}  Be7 {[%clk 0:02:30]} 10. Rhe1 {[%clk 0:03:04]}  O-O {[%clk 0:02:30]} 11. Kb1 {[%clk 0:03:05]}  Qa5 {[%clk 0:02:29]} 12. Qd2 {[%clk 0:03:04]}  Rfd8 {[%clk 0:02:28]} 13. Nd4 {[%clk 0:03:03]}  Qc7 {[%clk 0:02:13]} 14. f3 {[%clk 0:03:03]}  a6 {[%clk 0:02:05]} 15. g4 {[%clk 0:03:03]}  b5 {[%clk 0:02:05]} 16. h4 {[%clk 0:03:03]}  b4 {[%clk 0:02:04]} 17. Nce2 {[%clk 0:03:02]}  a5 {[%clk 0:02:04]} 18. h5 {[%clk 0:02:54]}  Rab8 {[%clk 0:01:59]} 19. Nxc6 {[%clk 0:02:45]}  Qxc6 {[%clk 0:01:59]} 20. Nd4 {[%clk 0:02:46]}  Qe8 {[%clk 0:01:51]} 21. f4 {[%clk 0:02:42]}  a4 {[%clk 0:01:50]} 22. Bxf6 {[%clk 0:02:24]}  Bxf6 {[%clk 0:01:49]} 23. g5 {[%clk 0:02:25]}  Bxd4 {[%clk 0:01:47]} 24. Qxd4 {[%clk 0:02:26]}  b3 {[%clk 0:01:44]} 25. cxb3 {[%clk 0:02:16]}  axb3 {[%clk 0:01:37]} 26. axb3 {[%clk 0:02:15]}  Rxb3 {[%clk 0:01:34]} 27. h6 {[%clk 0:02:14]}  e5 {[%clk 0:01:29]} 28. fxe5 {[%clk 0:02:12]}  Rdb8 {[%clk 0:01:27]} 29. exd6 {[%clk 0:02:00]}  Rxb2+ {[%clk 0:01:26]} 30. Qxb2 {[%clk 0:01:58]}  Rxb2+ {[%clk 0:01:27]} 31. Kxb2 {[%clk 0:01:59]}  Qb5+ {[%clk 0:01:27]} 32. Kc2 {[%clk 0:01:29]}  Qc4+ {[%clk 0:01:17]} 33. Kd2 {[%clk 0:01:25]}  Qd4+ {[%clk 0:01:17]} 34. Kc2 {[%clk 0:01:13]}  Qc4+ {[%clk 0:01:17]} 35. Kb2 {[%clk 0:01:14]}  Qb4+ {[%clk 0:01:17]} 36. Ka2 {[%clk 0:01:13]}  Qa4+ {[%clk 0:01:17]} 37. Kb2 {[%clk 0:01:14]}  Qb4+ {[%clk 0:01:17]} 38. Kc2 {[%clk 0:01:14]}  Qc4+ {[%clk 0:01:18]} 1/2-1/2


[Site "https://www.chess.com"]